[Event "Titled Tuesday Blitz January 03 Late 2023"]
[White "Herman, Daniel"]
[Black "Jacobson, Brandon"]
[WhiteFideId "30935008"]
[BlackFideId "30901561"]
[WhiteElo "1956"]
[BlackElo "2556"]
[Result "0-1"]
[Round "01"]
[TimeControl "180+2"]
[Date "2023.01.03"]
[WhiteClock "0:00:05"]
[BlackClock "0:00:12"]

1. c4 {[%clk 0:02:57]}  Nf6 {[%clk 0:02:56]} 2. g3 {[%clk 0:02:54]}  e5 {[%clk 0:02:53]} 3. Bg2 {[%clk 0:02:54]}  c6 {[%clk 0:02:52]} 4. d4 {[%clk 0:02:53]}  e4 {[%clk 0:02:53]} 5. d5 {[%clk 0:02:45]}  Bb4+ {[%clk 0:02:52]} 6. Bd2 {[%clk 0:02:39]}  Qe7 {[%clk 0:02:52]} 7. Bxb4 {[%clk 0:02:22]}  Qxb4+ {[%clk 0:02:53]} 8. Qd2 {[%clk 0:02:22]}  Qxc4 {[%clk 0:02:53]} 9. d6 {[%clk 0:02:15]}  O-O {[%clk 0:02:48]} 10. Nc3 {[%clk 0:02:09]}  Re8 {[%clk 0:02:44]} 11. Nh3 {[%clk 0:02:04]}  Qc5 {[%clk 0:02:42]} 12. e3 {[%clk 0:01:54]}  b5 {[%clk 0:02:36]} 13. Rc1 {[%clk 0:01:46]}  Qe5 {[%clk 0:02:27]} 14. Nf4 {[%clk 0:01:41]}  Ba6 {[%clk 0:02:12]} 15. b4 {[%clk 0:01:38]}  Bb7 {[%clk 0:02:12]} 16. Nce2 {[%clk 0:01:32]}  a5 {[%clk 0:02:07]} 17. Rc5 {[%clk 0:01:31]}  Qa1+ {[%clk 0:02:02]} 18. Rc1 {[%clk 0:01:31]}  Qe5 {[%clk 0:02:03]} 19. Rc5 {[%clk 0:01:31]}  Nd5 {[%clk 0:02:03]} 20. Nxd5 {[%clk 0:01:23]}  cxd5 {[%clk 0:02:04]} 21. O-O {[%clk 0:01:13]}  axb4 {[%clk 0:01:59]} 22. Rxb5 {[%clk 0:01:11]}  Bc6 {[%clk 0:01:51]} 23. Rxb4 {[%clk 0:01:11]}  Na6 {[%clk 0:01:51]} 24. Rd4 {[%clk 0:01:03]}  Nc5 {[%clk 0:01:39]} 25. Nf4 {[%clk 0:01:00]}  Ne6 {[%clk 0:01:31]} 26. Nxe6 {[%clk 0:00:59]}  dxe6 {[%clk 0:01:26]} 27. Rc1 {[%clk 0:00:56]}  Bd7 {[%clk 0:01:14]} 28. Rc7 {[%clk 0:00:55]}  Qxd6 {[%clk 0:01:14]} 29. Rc1 {[%clk 0:00:36]}  Qa3 {[%clk 0:01:06]} 30. Bxe4 {[%clk 0:00:30]}  Qxa2 {[%clk 0:01:06]} 31. Qxa2 {[%clk 0:00:24]}  Rxa2 {[%clk 0:01:07]} 32. Bf3 {[%clk 0:00:20]}  g6 {[%clk 0:01:08]} 33. h4 {[%clk 0:00:19]}  Rb8 {[%clk 0:00:59]} 34. Rc7 {[%clk 0:00:17]}  Be8 {[%clk 0:00:59]} 35. Rf4 {[%clk 0:00:16]}  Kg7 {[%clk 0:00:51]} 36. Bg4 {[%clk 0:00:16]}  e5 {[%clk 0:00:45]} 37. Rf3 {[%clk 0:00:12]}  Rb6 {[%clk 0:00:36]} 38. Re7 {[%clk 0:00:11]}  e4 {[%clk 0:00:26]} 39. Rf4 {[%clk 0:00:10]}  Ra1+ {[%clk 0:00:24]} 40. Kg2 {[%clk 0:00:10]}  Rbb1 {[%clk 0:00:25]} 41. Be6 {[%clk 0:00:08]}  h5 {[%clk 0:00:23]} 42. Rfxf7+ {[%clk 0:00:06]}  Bxf7 {[%clk 0:00:23]} 43. Rxf7+ {[%clk 0:00:07]}  Kh6 {[%clk 0:00:23]} 44. g4 {[%clk 0:00:05]}  Rg1+ {[%clk 0:00:20]} 45. Kh2 {[%clk 0:00:06]}  Rh1+ {[%clk 0:00:18]} 46. Kg3 {[%clk 0:00:06]}  Rag1+ {[%clk 0:00:18]} 47. Kf4 {[%clk 0:00:06]}  Rxh4 {[%clk 0:00:19]} 48. Rf8 {[%clk 0:00:06]}  Rhxg4+ {[%clk 0:00:16]} 49. Bxg4 {[%clk 0:00:05]}  Rxg4+ {[%clk 0:00:17]} 50. Ke5 {[%clk 0:00:06]}  Kg7 {[%clk 0:00:18]} 51. Ra8 {[%clk 0:00:05]}  Rg5+ {[%clk 0:00:17]} 52. Kf4 {[%clk 0:00:05]}  Rf5+ {[%clk 0:00:17]} 53. Kg3 {[%clk 0:00:05]}  g5 {[%clk 0:00:18]} 54. Ra7+ {[%clk 0:00:05]}  Kg6 {[%clk 0:00:18]} 55. Ra6+ {[%clk 0:00:06]}  Rf6 {[%clk 0:00:19]} 56. Ra7 {[%clk 0:00:06]}  h4+ {[%clk 0:00:20]} 57. Kg2 {[%clk 0:00:06]}  g4 {[%clk 0:00:19]} 58. Ra8 {[%clk 0:00:05]}  h3+ {[%clk 0:00:19]} 59. Kg3 {[%clk 0:00:06]}  Rf3+ {[%clk 0:00:16]} 60. Kxg4 {[%clk 0:00:05]}  h2 {[%clk 0:00:17]} 61. Rh8 {[%clk 0:00:05]}  Rxf2 {[%clk 0:00:18]} 62. Kg3 {[%clk 0:00:05]}  Re2 {[%clk 0:00:18]} 63. Kf4 {[%clk 0:00:05]}  Kf6 {[%clk 0:00:18]} 64. Rh6+ {[%clk 0:00:04]}  Kg7 {[%clk 0:00:18]} 65. Rh3 {[%clk 0:00:05]}  Kg6 {[%clk 0:00:18]} 66. Rh8 {[%clk 0:00:05]}  Rd2 {[%clk 0:00:15]} 67. Rh3 {[%clk 0:00:04]}  Kf6 {[%clk 0:00:14]} 68. Rh6+ {[%clk 0:00:03]}  Kg7 {[%clk 0:00:15]} 69. Rh3 {[%clk 0:00:04]}  Kf6 {[%clk 0:00:12]} 70. Rh6+ {[%clk 0:00:04]}  Ke7 {[%clk 0:00:13]} 71. Rh3 {[%clk 0:00:04]}  Kd6 {[%clk 0:00:13]} 72. Rh6+ {[%clk 0:00:04]}  Kc5 {[%clk 0:00:14]} 73. Rh5 {[%clk 0:00:04]}  Kc4 {[%clk 0:00:14]} 74. Rh4 {[%clk 0:00:04]}  Kd3 {[%clk 0:00:14]} 75. Rh3 {[%clk 0:00:04]}  Rg2 {[%clk 0:00:09]} 76. Ke5 {[%clk 0:00:04]}  d4 {[%clk 0:00:08]} 77. exd4+ {[%clk 0:00:03]}  e3 {[%clk 0:00:09]} 78. d5 {[%clk 0:00:03]}  Kd2 {[%clk 0:00:08]} 79. d6 {[%clk 0:00:03]}  e2 {[%clk 0:00:07]} 80. d7 {[%clk 0:00:03]}  e1=Q+ {[%clk 0:00:07]} 81. Kd6 {[%clk 0:00:03]}  Rg8 {[%clk 0:00:07]} 82. Rxh2+ {[%clk 0:00:03]}  Kc1 {[%clk 0:00:08]} 83. Ra2 {[%clk 0:00:02]}  Qb4+ {[%clk 0:00:08]} 84. Kc7 {[%clk 0:00:02]}  Qc5+ {[%clk 0:00:09]} 85. Kb7 {[%clk 0:00:02]}  Qb5+ {[%clk 0:00:09]} 86. Kc7 {[%clk 0:00:02]}  Qc4+ {[%clk 0:00:10]} 87. Kb7 {[%clk 0:00:02]}  Qxa2 {[%clk 0:00:10]} 88. Kb6 {[%clk 0:00:02]}  Qd5 {[%clk 0:00:10]} 89. Kc7 {[%clk 0:00:03]}  Rg7 {[%clk 0:00:10]} 90. Kc8 {[%clk 0:00:04]}  Qxd7+ {[%clk 0:00:11]} 91. Kb8 {[%clk 0:00:05]}  Qd8# {[%clk 0:00:12]} 0-1


[Site "https://www.chess.com"]

[Event "Titled Tuesday Blitz January 03 Late 2023"]
[White "Lenderman, Aleksandr"]
[Black "Ozates, Tuna"]
[WhiteFideId "2021285"]
[BlackFideId "6354521"]
[WhiteElo "2572"]
[BlackElo "2251"]
[Result "1-0"]
[Round "01"]
[TimeControl "180+2"]
[Date "2023.01.03"]
[WhiteClock "0:00:28"]
[BlackClock "0:00:17"]

1. e4 {[%clk 0:02:58]}  c5 {[%clk 0:02:58]} 2. d4 {[%clk 0:02:57]}  cxd4 {[%clk 0:02:58]} 3. c3 {[%clk 0:02:57]}  d3 {[%clk 0:02:58]} 4. Bxd3 {[%clk 0:02:56]}  Nc6 {[%clk 0:02:58]} 5. Nf3 {[%clk 0:02:56]}  g6 {[%clk 0:02:59]} 6. Bc4 {[%clk 0:02:54]}  Bg7 {[%clk 0:02:59]} 7. e5 {[%clk 0:02:50]}  Nh6 {[%clk 0:02:45]} 8. Bf4 {[%clk 0:02:47]}  O-O {[%clk 0:02:44]} 9. O-O {[%clk 0:02:46]}  Ng4 {[%clk 0:02:36]} 10. Re1 {[%clk 0:02:46]}  Qc7 {[%clk 0:02:24]} 11. Qe2 {[%clk 0:02:46]}  Kh8 {[%clk 0:02:16]} 12. h3 {[%clk 0:02:42]}  Nh6 {[%clk 0:02:13]} 13. Qd2 {[%clk 0:02:43]}  Ng8 {[%clk 0:01:59]} 14. e6 {[%clk 0:02:43]}  d6 {[%clk 0:01:53]} 15. exf7 {[%clk 0:02:43]}  Nf6 {[%clk 0:01:52]} 16. Na3 {[%clk 0:02:43]}  a6 {[%clk 0:01:50]} 17. Ng5 {[%clk 0:02:34]}  e5 {[%clk 0:01:48]} 18. Be3 {[%clk 0:02:31]}  b5 {[%clk 0:01:40]} 19. Bb3 {[%clk 0:02:28]}  Na5 {[%clk 0:01:39]} 20. Rad1 {[%clk 0:02:21]}  Nxb3 {[%clk 0:01:38]} 21. axb3 {[%clk 0:02:22]}  h6 {[%clk 0:01:37]} 22. Nf3 {[%clk 0:02:22]}  Ne4 {[%clk 0:01:36]} 23. Qd3 {[%clk 0:02:09]}  Bf5 {[%clk 0:01:33]} 24. Qd5 {[%clk 0:01:48]}  Qxf7 {[%clk 0:01:28]} 25. Qxf7 {[%clk 0:01:46]}  Rxf7 {[%clk 0:01:28]} 26. Nd2 {[%clk 0:01:43]}  Nxd2 {[%clk 0:01:01]} 27. Rxd2 {[%clk 0:01:44]}  Rd8 {[%clk 0:01:00]} 28. c4 {[%clk 0:01:37]}  b4 {[%clk 0:00:50]} 29. Nc2 {[%clk 0:01:36]}  a5 {[%clk 0:00:50]} 30. Ra1 {[%clk 0:01:35]}  Bxc2 {[%clk 0:00:44]} 31. Rxc2 {[%clk 0:01:36]}  d5 {[%clk 0:00:44]} 32. Rxa5 {[%clk 0:01:28]}  d4 {[%clk 0:00:44]} 33. Bd2 {[%clk 0:01:29]}  d3 {[%clk 0:00:41]} 34. Rc1 {[%clk 0:01:29]}  e4 {[%clk 0:00:41]} 35. Re1 {[%clk 0:01:14]}  Bxb2 {[%clk 0:00:32]} 36. Rxe4 {[%clk 0:01:08]}  Bc3 {[%clk 0:00:32]} 37. Ra2 {[%clk 0:01:01]}  Rdd7 {[%clk 0:00:26]} 38. Kf1 {[%clk 0:00:46]}  Ra7 {[%clk 0:00:23]} 39. Re8+ {[%clk 0:00:27]}  Kh7 {[%clk 0:00:21]} 40. Ra8 {[%clk 0:00:28]}  Rxa8 {[%clk 0:00:18]} 41. Rxa8 {[%clk 0:00:29]}  Bxd2 {[%clk 0:00:18]} 42. Rd8 {[%clk 0:00:29]}  Re7 {[%clk 0:00:18]} 43. g3 {[%clk 0:00:29]}  Re1+ {[%clk 0:00:18]} 44. Kg2 {[%clk 0:00:30]}  Bc3 {[%clk 0:00:17]} 45. Rxd3 {[%clk 0:00:30]}  Rb1 {[%clk 0:00:18]} 46. c5 {[%clk 0:00:30]}  Rxb3 {[%clk 0:00:16]} 47. c6 {[%clk 0:00:30]}  Rb1 {[%clk 0:00:17]} 48. c7 {[%clk 0:00:28]} 1-0


[Site "https://www.chess.com"]

[Event "Titled Tuesday Blitz January 03 Late 2023"]
[White "Melaugh, Shane"]
[Black "Liascovich, Lucas"]
[WhiteFideId "2509580"]
[BlackFideId "108634"]
[WhiteElo "2115"]
[BlackElo "2411"]
[Result "0-1"]
[Round "01"]
[TimeControl "180+2"]
[Date "2023.01.03"]
[WhiteClock "0:00:16"]
[BlackClock "0:00:23"]

1. c4 {[%clk 0:03:00]}  c6 {[%clk 0:02:24]} 2. Nc3 {[%clk 0:02:58]}  d5 {[%clk 0:02:24]} 3. cxd5 {[%clk 0:02:58]}  cxd5 {[%clk 0:02:22]} 4. d4 {[%clk 0:02:59]}  Nc6 {[%clk 0:02:21]} 5. Nf3 {[%clk 0:02:58]}  Nf6 {[%clk 0:02:20]} 6. Bg5 {[%clk 0:02:43]}  a6 {[%clk 0:02:21]} 7. e3 {[%clk 0:02:41]}  Ne4 {[%clk 0:02:14]} 8. Bh4 {[%clk 0:02:25]}  Bf5 {[%clk 0:02:03]} 9. Bd3 {[%clk 0:02:24]}  Nxc3 {[%clk 0:02:00]} 10. bxc3 {[%clk 0:02:24]}  Qd7 {[%clk 0:02:00]} 11. O-O {[%clk 0:02:21]}  Bxd3 {[%clk 0:01:57]} 12. Qxd3 {[%clk 0:02:22]}  e6 {[%clk 0:01:58]} 13. e4 {[%clk 0:02:16]}  Be7 {[%clk 0:01:53]} 14. Bxe7 {[%clk 0:02:13]}  Nxe7 {[%clk 0:01:53]} 15. c4 {[%clk 0:02:04]}  dxc4 {[%clk 0:01:44]} 16. Qxc4 {[%clk 0:02:04]}  O-O {[%clk 0:01:44]} 17. Rab1 {[%clk 0:02:03]}  b5 {[%clk 0:01:44]} 18. Qd3 {[%clk 0:02:02]}  Rac8 {[%clk 0:01:43]} 19. Rfc1 {[%clk 0:02:01]}  f6 {[%clk 0:01:37]} 20. Qb3 {[%clk 0:01:59]}  Rxc1+ {[%clk 0:01:34]} 21. Rxc1 {[%clk 0:01:59]}  Nc6 {[%clk 0:01:32]} 22. h3 {[%clk 0:01:47]}  Rd8 {[%clk 0:01:23]} 23. Rd1 {[%clk 0:01:23]}  Qe7 {[%clk 0:01:19]} 24. d5 {[%clk 0:01:17]}  Na5 {[%clk 0:01:18]} 25. Qc2 {[%clk 0:01:08]}  exd5 {[%clk 0:01:13]} 26. Rxd5 {[%clk 0:01:02]}  Rxd5 {[%clk 0:01:10]} 27. exd5 {[%clk 0:01:02]}  Nc4 {[%clk 0:00:57]} 28. Qf5 {[%clk 0:01:03]}  Nd6 {[%clk 0:00:50]} 29. Qc2 {[%clk 0:01:02]}  Nc4 {[%clk 0:00:44]} 30. Qf5 {[%clk 0:01:01]}  Nd6 {[%clk 0:00:29]} 31. Qc2 {[%clk 0:01:01]}  g6 {[%clk 0:00:29]} 32. Qc6 {[%clk 0:00:57]}  Kf7 {[%clk 0:00:29]} 33. Qxa6 {[%clk 0:00:54]}  Qc7 {[%clk 0:00:30]} 34. g3 {[%clk 0:00:39]}  Qc5 {[%clk 0:00:27]} 35. Qa8 {[%clk 0:00:25]}  Ne4 {[%clk 0:00:25]} 36. Qb7+ {[%clk 0:00:26]}  Kf8 {[%clk 0:00:23]} 37. Qb8+ {[%clk 0:00:21]}  Kg7 {[%clk 0:00:23]} 38. Qf4 {[%clk 0:00:16]}  Qxf2+ {[%clk 0:00:22]} 39. Kh1 {[%clk 0:00:16]}  Nxg3+ {[%clk 0:00:23]} 0-1


[Site "https://www.chess.com"]

[Event "Titled Tuesday Blitz January 03 Late 2023"]
[White "Grigoriants, Sergey"]
[Black "Kalogeris, Ioannis"]
[WhiteFideId "4130804"]
[BlackFideId "4239563"]
[WhiteElo "2562"]
[BlackElo "2423"]
[Result "1-0"]
[Round "01"]
[TimeControl "180+2"]
[Date "2023.01.03"]
[WhiteClock "0:00:14"]
[BlackClock "0:00:32"]

1. d4 {[%clk 0:02:57]}  d5 {[%clk 0:02:59]} 2. c4 {[%clk 0:02:57]}  c6 {[%clk 0:03:00]} 3. Nf3 {[%clk 0:02:56]}  Nf6 {[%clk 0:02:56]} 4. e3 {[%clk 0:02:56]}  Bf5 {[%clk 0:02:54]} 5. Nc3 {[%clk 0:02:51]}  e6 {[%clk 0:02:54]} 6. Nh4 {[%clk 0:02:51]}  Be4 {[%clk 0:02:53]} 7. f3 {[%clk 0:02:50]}  Bg6 {[%clk 0:02:54]} 8. Bd2 {[%clk 0:02:46]}  Be7 {[%clk 0:02:53]} 9. Nxg6 {[%clk 0:02:44]}  hxg6 {[%clk 0:02:52]} 10. Qc2 {[%clk 0:02:43]}  Nbd7 {[%clk 0:02:50]} 11. O-O-O {[%clk 0:02:42]}  Rc8 {[%clk 0:02:47]} 12. Kb1 {[%clk 0:02:40]}  dxc4 {[%clk 0:02:35]} 13. Bxc4 {[%clk 0:02:32]}  b5 {[%clk 0:02:35]} 14. Be2 {[%clk 0:02:31]}  a6 {[%clk 0:02:29]} 15. Bc1 {[%clk 0:02:04]}  Qa5 {[%clk 0:02:22]} 16. e4 {[%clk 0:01:50]}  O-O {[%clk 0:02:11]} 17. h4 {[%clk 0:01:47]}  c5 {[%clk 0:02:02]} 18. d5 {[%clk 0:01:45]}  exd5 {[%clk 0:02:00]} 19. Nxd5 {[%clk 0:01:40]}  Nxd5 {[%clk 0:01:56]} 20. exd5 {[%clk 0:01:40]}  c4 {[%clk 0:01:37]} 21. h5 {[%clk 0:01:26]}  gxh5 {[%clk 0:01:37]} 22. Rxh5 {[%clk 0:00:59]}  g6 {[%clk 0:01:36]} 23. Rh6 {[%clk 0:00:59]}  Kg7 {[%clk 0:01:29]} 24. Bd2 {[%clk 0:00:34]}  Qb6 {[%clk 0:01:29]} 25. Rdh1 {[%clk 0:00:33]}  Rh8 {[%clk 0:01:28]} 26. Qe4 {[%clk 0:00:25]}  Bf6 {[%clk 0:01:25]} 27. Qg4 {[%clk 0:00:24]}  Qd4 {[%clk 0:01:05]} 28. Rxg6+ {[%clk 0:00:17]}  Kf8 {[%clk 0:00:35]} 29. Bb4+ {[%clk 0:00:16]}  Ke8 {[%clk 0:00:32]} 30. Rxh8+ {[%clk 0:00:14]} 1-0


[Site "https://www.chess.com"]

[Event "Titled Tuesday Blitz January 03 Late 2023"]
[White "Roberson, Peter T"]
[Black "Li, Ruifeng"]
[WhiteFideId "412384"]
[BlackFideId "2061074"]
[WhiteElo "2430"]
[BlackElo "2541"]
[Result "1-0"]
[Round "01"]
[TimeControl "180+2"]
[Date "2023.01.03"]
[WhiteClock "0:00:05"]
[BlackClock "0:00:11"]

1. e4 {[%clk 0:02:59]}  d6 {[%clk 0:03:00]} 2. d4 {[%clk 0:02:59]}  Nf6 {[%clk 0:03:01]} 3. Nc3 {[%clk 0:02:59]}  Nc6 {[%clk 0:03:01]} 4. Bb5 {[%clk 0:02:56]}  a6 {[%clk 0:03:01]} 5. Bxc6+ {[%clk 0:02:57]}  bxc6 {[%clk 0:03:02]} 6. Nf3 {[%clk 0:02:55]}  g6 {[%clk 0:03:02]} 7. O-O {[%clk 0:02:55]}  Bg7 {[%clk 0:03:03]} 8. Re1 {[%clk 0:02:56]}  O-O {[%clk 0:03:03]} 9. b3 {[%clk 0:02:55]}  c5 {[%clk 0:02:55]} 10. Bb2 {[%clk 0:02:41]}  cxd4 {[%clk 0:02:54]} 11. Qxd4 {[%clk 0:02:42]}  c5 {[%clk 0:02:47]} 12. Qd3 {[%clk 0:02:41]}  Bb7 {[%clk 0:02:46]} 13. Rad1 {[%clk 0:02:39]}  Qc7 {[%clk 0:02:33]} 14. e5 {[%clk 0:02:37]}  dxe5 {[%clk 0:02:32]} 15. Nxe5 {[%clk 0:02:38]}  Rad8 {[%clk 0:02:27]} 16. Qe2 {[%clk 0:02:34]}  e6 {[%clk 0:02:18]} 17. Nc4 {[%clk 0:02:22]}  Rd4 {[%clk 0:02:00]} 18. Na4 {[%clk 0:02:11]}  Rh4 {[%clk 0:01:47]} 19. h3 {[%clk 0:02:05]}  Ng4 {[%clk 0:01:10]} 20. Ne5 {[%clk 0:01:47]}  Nxe5 {[%clk 0:00:21]} 21. Bxe5 {[%clk 0:01:48]}  Qc6 {[%clk 0:00:20]} 22. f3 {[%clk 0:01:36]}  Bxe5 {[%clk 0:00:20]} 23. Qxe5 {[%clk 0:01:36]}  Rxh3 {[%clk 0:00:21]} 24. gxh3 {[%clk 0:01:34]}  Qxf3 {[%clk 0:00:21]} 25. Qh2 {[%clk 0:01:35]}  Rc8 {[%clk 0:00:18]} 26. Rd3 {[%clk 0:01:29]}  Qf6 {[%clk 0:00:17]} 27. Red1 {[%clk 0:01:19]}  c4 {[%clk 0:00:16]} 28. Rd7 {[%clk 0:00:54]}  Bf3 {[%clk 0:00:09]} 29. R1d2 {[%clk 0:00:21]}  cxb3 {[%clk 0:00:08]} 30. axb3 {[%clk 0:00:21]}  Be4 {[%clk 0:00:04]} 31. Nb6 {[%clk 0:00:12]}  Rc3 {[%clk 0:00:04]} 32. Nc4 {[%clk 0:00:03]}  Kg7 {[%clk 0:00:04]} 33. Qe5 {[%clk 0:00:02]}  Rxh3 {[%clk 0:00:05]} 34. Qxf6+ {[%clk 0:00:02]}  Kxf6 {[%clk 0:00:06]} 35. R7d6 {[%clk 0:00:03]}  Bf5 {[%clk 0:00:06]} 36. Rxa6 {[%clk 0:00:02]}  h5 {[%clk 0:00:06]} 37. Nd6 {[%clk 0:00:02]}  h4 {[%clk 0:00:07]} 38. Nxf5 {[%clk 0:00:02]}  gxf5 {[%clk 0:00:06]} 39. Kg2 {[%clk 0:00:02]}  Rg3+ {[%clk 0:00:06]} 40. Kf2 {[%clk 0:00:02]}  Kg5 {[%clk 0:00:07]} 41. Rd3 {[%clk 0:00:02]}  f4 {[%clk 0:00:06]} 42. Rxg3+ {[%clk 0:00:01]}  fxg3+ {[%clk 0:00:07]} 43. Kf3 {[%clk 0:00:02]}  e5 {[%clk 0:00:06]} 44. Ra5 {[%clk 0:00:01]}  Kf5 {[%clk 0:00:06]} 45. b4 {[%clk 0:00:02]}  Ke6 {[%clk 0:00:05]} 46. b5 {[%clk 0:00:02]}  f5 {[%clk 0:00:05]} 47. b6 {[%clk 0:00:03]}  e4+ {[%clk 0:00:06]} 48. Kg2 {[%clk 0:00:01]}  f4 {[%clk 0:00:06]} 49. b7 {[%clk 0:00:02]}  f3+ {[%clk 0:00:06]} 50. Kh3 {[%clk 0:00:03]}  f2 {[%clk 0:00:06]} 51. Ra1 {[%clk 0:00:02]}  e3 {[%clk 0:00:06]} 52. b8=Q {[%clk 0:00:02]}  e2 {[%clk 0:00:07]} 53. Qe8+ {[%clk 0:00:02]}  Kd5 {[%clk 0:00:07]} 54. Qxe2 {[%clk 0:00:03]}  Kd4 {[%clk 0:00:07]} 55. Qd3+ {[%clk 0:00:04]}  Kc5 {[%clk 0:00:08]} 56. Ra5+ {[%clk 0:00:04]}  Kb4 {[%clk 0:00:08]} 57. Qb5+ {[%clk 0:00:03]}  Kc3 {[%clk 0:00:09]} 58. Qd3+ {[%clk 0:00:04]}  Kb2 {[%clk 0:00:09]} 59. Rb5+ {[%clk 0:00:04]}  Kc1 {[%clk 0:00:10]} 60. Qf1+ {[%clk 0:00:04]}  Kd2 {[%clk 0:00:10]} 61. Kg2 {[%clk 0:00:04]}  h3+ {[%clk 0:00:10]} 62. Kxg3 {[%clk 0:00:05]}  Kc3 {[%clk 0:00:10]} 63. Rh5 {[%clk 0:00:04]}  Kd2 {[%clk 0:00:11]} 64. c4 {[%clk 0:00:05]}  Kc3 {[%clk 0:00:11]} 65. c5 {[%clk 0:00:05]} 1-0


[Site "https://www.chess.com"]

[Event "Titled Tuesday Blitz January 03 Late 2023"]
[White "reevecanada"]
[Black "Tang, Andrew"]
[BlackFideId "2059630"]
[WhiteElo "2486"]
[BlackElo "2523"]
[Result "0-1"]
[Round "01"]
[TimeControl "180+2"]
[Date "2023.01.03"]
[WhiteClock "0:00:07"]
[BlackClock "0:00:14"]

1. e4 {[%clk 0:02:58]}  b5 {[%clk 0:02:59]} 2. Bxb5 {[%clk 0:02:56]}  f5 {[%clk 0:02:59]} 3. exf5 {[%clk 0:02:53]}  c6 {[%clk 0:02:59]} 4. Qh5+ {[%clk 0:02:47]}  g6 {[%clk 0:02:59]} 5. fxg6 {[%clk 0:02:47]}  Bg7 {[%clk 0:03:00]} 6. gxh7+ {[%clk 0:02:44]}  Kf8 {[%clk 0:03:00]} 7. hxg8=Q+ {[%clk 0:02:43]}  Kxg8 {[%clk 0:02:53]} 8. Qf3 {[%clk 0:02:42]}  cxb5 {[%clk 0:02:54]} 9. Ne2 {[%clk 0:02:36]}  Nc6 {[%clk 0:02:49]} 10. d4 {[%clk 0:02:33]}  Bb7 {[%clk 0:02:28]} 11. Qb3+ {[%clk 0:02:27]}  e6 {[%clk 0:02:26]} 12. d5 {[%clk 0:02:21]}  Na5 {[%clk 0:02:23]} 13. Qxb5 {[%clk 0:02:13]}  Bxd5 {[%clk 0:02:23]} 14. Nbc3 {[%clk 0:02:12]}  a6 {[%clk 0:01:53]} 15. Qd3 {[%clk 0:02:10]}  Bb7 {[%clk 0:01:50]} 16. Bf4 {[%clk 0:02:03]}  d5 {[%clk 0:01:46]} 17. O-O-O {[%clk 0:01:44]}  Rc8 {[%clk 0:01:37]} 18. h4 {[%clk 0:01:40]}  Nc4 {[%clk 0:01:31]} 19. h5 {[%clk 0:01:27]}  Qb6 {[%clk 0:01:27]} 20. b3 {[%clk 0:01:19]}  Ne5 {[%clk 0:01:10]} 21. Qg3 {[%clk 0:01:11]}  Nf7 {[%clk 0:00:53]} 22. h6 {[%clk 0:01:09]}  Rh7 {[%clk 0:00:53]} 23. hxg7 {[%clk 0:00:59]}  Rxg7 {[%clk 0:00:54]} 24. Qh3 {[%clk 0:00:54]}  e5 {[%clk 0:00:54]} 25. Bd2 {[%clk 0:00:34]}  d4 {[%clk 0:00:54]} 26. Nb1 {[%clk 0:00:23]}  Qc5 {[%clk 0:00:44]} 27. c3 {[%clk 0:00:23]}  Bxg2 {[%clk 0:00:42]} 28. Qh4 {[%clk 0:00:20]}  Bxh1 {[%clk 0:00:19]} 29. Rxh1 {[%clk 0:00:21]}  d3 {[%clk 0:00:19]} 30. Ng1 {[%clk 0:00:18]}  e4 {[%clk 0:00:17]} 31. Nh3 {[%clk 0:00:18]}  Qf5 {[%clk 0:00:15]} 32. Nf4 {[%clk 0:00:18]}  Rc6 {[%clk 0:00:14]} 33. Nh5 {[%clk 0:00:17]}  Rh7 {[%clk 0:00:13]} 34. Qg3+ {[%clk 0:00:17]}  Kf8 {[%clk 0:00:12]} 35. Qb8+ {[%clk 0:00:16]}  Rc8 {[%clk 0:00:12]} 36. Qb4+ {[%clk 0:00:16]}  Kg8 {[%clk 0:00:08]} 37. Rg1+ {[%clk 0:00:14]}  Kh8 {[%clk 0:00:08]} 38. Qd4+ {[%clk 0:00:13]}  Qe5 {[%clk 0:00:09]} 39. Qxe5+ {[%clk 0:00:09]}  Nxe5 {[%clk 0:00:10]} 40. Nf6 {[%clk 0:00:09]}  Rh3 {[%clk 0:00:03]} 41. Nxe4 {[%clk 0:00:09]}  Nf3 {[%clk 0:00:03]} 42. Rg4 {[%clk 0:00:09]}  Rh1+ {[%clk 0:00:04]} 43. Kb2 {[%clk 0:00:09]}  Re8 {[%clk 0:00:04]} 44. Rf4 {[%clk 0:00:09]}  Ne5 {[%clk 0:00:03]} 45. Nf6 {[%clk 0:00:07]}  Rf8 {[%clk 0:00:03]} 46. Rf5 {[%clk 0:00:08]}  Ng6 {[%clk 0:00:02]} 47. c4 {[%clk 0:00:06]}  Ne7 {[%clk 0:00:03]} 48. Rf3 {[%clk 0:00:05]}  Kg7 {[%clk 0:00:03]} 49. Bc3 {[%clk 0:00:06]}  Kg6 {[%clk 0:00:04]} 50. Rg3+ {[%clk 0:00:06]}  Kf7 {[%clk 0:00:04]} 51. Ne4 {[%clk 0:00:06]}  Rf1 {[%clk 0:00:04]} 52. Rxd3 {[%clk 0:00:05]}  Nf5 {[%clk 0:00:04]} 53. Ng5+ {[%clk 0:00:06]}  Kg6 {[%clk 0:00:05]} 54. Nh3 {[%clk 0:00:05]}  Re8 {[%clk 0:00:05]} 55. Nf4+ {[%clk 0:00:05]}  Kg5 {[%clk 0:00:06]} 56. Nh3+ {[%clk 0:00:06]}  Kg4 {[%clk 0:00:06]} 57. Nd2 {[%clk 0:00:07]}  Re2 {[%clk 0:00:06]} 58. Ka3 {[%clk 0:00:07]}  Rh1 {[%clk 0:00:06]} 59. Nf3 {[%clk 0:00:04]}  Re8 {[%clk 0:00:03]} 60. Ne5+ {[%clk 0:00:04]}  Kh4 {[%clk 0:00:03]} 61. Ng6+ {[%clk 0:00:03]}  Kg4 {[%clk 0:00:03]} 62. Ngf4 {[%clk 0:00:04]}  Rc1 {[%clk 0:00:03]} 63. f3+ {[%clk 0:00:05]}  Kg3 {[%clk 0:00:03]} 64. Bb2 {[%clk 0:00:06]}  Rc2 {[%clk 0:00:03]} 65. Rd5 {[%clk 0:00:06]}  Ne3 {[%clk 0:00:03]} 66. Rg5+ {[%clk 0:00:07]}  Kh2 {[%clk 0:00:04]} 67. Nd3 {[%clk 0:00:07]}  Re2 {[%clk 0:00:04]} 68. Be5+ {[%clk 0:00:08]}  Kxh3 {[%clk 0:00:04]} 69. Nf4+ {[%clk 0:00:08]}  Kh4 {[%clk 0:00:05]} 70. Rg4+ {[%clk 0:00:09]}  Nxg4 {[%clk 0:00:05]} 71. Nxe2 {[%clk 0:00:09]}  Nxe5 {[%clk 0:00:06]} 72. Nf4 {[%clk 0:00:10]}  Nxf3 {[%clk 0:00:07]} 73. Nd5 {[%clk 0:00:09]}  Kg5 {[%clk 0:00:07]} 74. Nc7 {[%clk 0:00:09]}  Rc8 {[%clk 0:00:06]} 75. Nd5 {[%clk 0:00:08]}  Nd4 {[%clk 0:00:06]} 76. Ka4 {[%clk 0:00:09]}  Nc6 {[%clk 0:00:06]} 77. a3 {[%clk 0:00:08]}  Kf5 {[%clk 0:00:07]} 78. Nb6 {[%clk 0:00:07]}  Rc7 {[%clk 0:00:06]} 79. Nd5 {[%clk 0:00:07]}  Rb7 {[%clk 0:00:07]} 80. b4 {[%clk 0:00:07]}  Ke5 {[%clk 0:00:07]} 81. Nc3 {[%clk 0:00:07]}  Kd4 {[%clk 0:00:08]} 82. Kb3 {[%clk 0:00:06]}  Na5+ {[%clk 0:00:07]} 83. Ka4 {[%clk 0:00:07]}  Kxc3 {[%clk 0:00:06]} 84. Kxa5 {[%clk 0:00:07]}  Kxc4 {[%clk 0:00:07]} 85. Kxa6 {[%clk 0:00:08]}  Rb5 {[%clk 0:00:07]} 86. Ka7 {[%clk 0:00:08]}  Kb3 {[%clk 0:00:08]} 87. Ka6 {[%clk 0:00:09]}  Ka4 {[%clk 0:00:08]} 88. Ka7 {[%clk 0:00:09]}  Kxa3 {[%clk 0:00:09]} 89. Ka6 {[%clk 0:00:10]}  Kxb4 {[%clk 0:00:10]} 90. Ka7 {[%clk 0:00:10]}  Kc5 {[%clk 0:00:10]} 91. Ka6 {[%clk 0:00:11]}  Kc6 {[%clk 0:00:11]} 92. Ka7 {[%clk 0:00:12]}  Kc7 {[%clk 0:00:12]} 93. Ka8 {[%clk 0:00:12]}  Rc5 {[%clk 0:00:13]} 94. Ka7 {[%clk 0:00:07]}  Ra5# {[%clk 0:00:14]} 0-1


[Site "https://www.chess.com"]